fUST/lending_fUST_20251020
["ID","MTS","AMOUNT","RATE_DAILY","PERIOD"]
[391899608,1760967042329,-500.0,0.00030627,2]
[391899609,1760967042338,-500.0,0.00030627,2]
[391899610,1760967042348,-169.26850405,0.00030627,2]
[391899611,1760967042358,-500.0,0.00030627,2]
[391899612,1760967042367,-500.0,0.00030627,2]
[391899613,1760967042377,-274.4352498,0.00030627,2]
[391899614,1760967042386,-500.0,0.00030682,2]
[391899616,1760967042395,-524.91923794,0.00030682,2]
[391899618,1760967042405,-500.0,0.00030682,2]
[391899619,1760967042414,-357.342709,0.00030682,2]
[391899620,1760967042424,-1060.0,0.00030709,2]
[391899621,1760967042434,-500.0,0.00030737,2]
[391899622,1760967042443,-500.0,0.00030737,2]
[391899623,1760967042452,-880.9823449,0.0003079,30]
[391899624,1760967042461,-503.29527612,0.00030792,2]
[391899626,1760967042471,-500.0,0.00030792,2]
[391899628,1760967042480,-500.0,0.000308,5]
[391899629,1760967042489,-174.55050883,0.000308,5]
[391899630,1760967042498,-158.10768188,0.000308,5]
[391899631,1760967042507,-160.09153937,0.000308,5]
[391899632,1760967042517,-500.0,0.000308,5]
[391899633,1760967042527,-823.0,0.0003084,2]
[391899634,1760967042538,-800.0,0.00030844,2]
[391899635,1760967042548,-304.16799581,0.00030847,2]
[391899636,1760967042558,-397.5,0.00030865,2]
[391899637,1760967042567,-5000.0,0.00030904,5]
[391899638,1760967042576,-500.0,0.00030938,5]
[391899639,1760967042586,-160.04802683,0.00030938,5]
[391899640,1760967042603,-500.0,0.00030938,5]
[391899641,1760967042621,-500.0,0.00030938,5]
[391899642,1760967042640,-500.0,0.00030938,5]
[391899643,1760967042660,-500.0,0.00030969,5]
[391899644,1760967042680,-500.0,0.00030969,5]
[391899646,1760967042697,-500.0,0.00030969,5]
[391899647,1760967042717,-303.60548378,0.0003099,2]
[391899648,1760967042734,-475.69693235,0.00031,120]
[391899649,1760967042751,-167.41556492,0.00031,120]
[391899650,1760967042769,-213.13086188,0.00031,120]
[391899651,1760967042789,-796.76826484,0.00031,120]
[391899653,1760967042802,-160.30235318,0.00031,120]
[391899654,1760967042822,-204.00726077,0.00031,120]
[391899655,1760967042837,-531.92057593,0.00031,120]
[391899656,1760967042854,-296.85550711,0.00031,120]
[391899657,1760967042868,-289.15024196,0.00031,120]
[391899658,1760967042883,-2647.65,0.00031,2]
[391899659,1760967042898,-500.0,0.00031,120]
[391899661,1760967042912,-502.79717437,0.00031044,5]
[391899662,1760967042928,-17530.02,0.000312,7]
[391899663,1760967042945,-200.0,0.000312,10]
[391899664,1760967042960,-1160.0,0.00031257,2]
[391899665,1760967042975,-1000.0,0.00031348,5]
[391899666,1760967042989,-1000.0,0.00031348,5]
[391899667,1760967043004,-1000.0,0.00031416,4]
[391899668,1760967043018,-5500.0,0.00031452,5]
[391899669,1760967043033,-420.0,0.00031465,2]
[391899670,1760967043048,-8307.970109,0.0003147,2]
[391899671,1760967043066,-1002.13746908,0.00031486,5]
[391899672,1760967043081,-410.62875183,0.00031486,5]
[391899673,1760967043095,-503.62179262,0.00031486,5]
[391899674,1760967043110,-469.37199468,0.00031486,5]
[391899675,1760967043125,-1000.0,0.00031517,5]
[391899676,1760967043141,-335.50537354,0.00031517,5]
[391899677,1760967043156,-1000.0,0.00031517,5]
[391899678,1760967043170,-681.71222659,0.00031704,2]
[391899679,1760967043184,-800.0,0.00031723,2]
[391899680,1760967043198,-334.77639936,0.00031805,2]
[391899681,1760967043213,-1500.0,0.00031896,5]
[391899682,1760967043228,-1500.0,0.00031896,5]
[391899683,1760967043242,-475.69693235,0.000319,120]
[391899684,1760967043257,-796.76826484,0.000319,120]
[391899685,1760967043273,-204.00726077,0.000319,120]
[391899686,1760967043287,-160.30235318,0.000319,120]
[391899687,1760967043303,-531.92057593,0.000319,120]
[391899688,1760967043318,-289.15024196,0.000319,120]
[391899689,1760967043333,-250.0,0.00031942,2]
[391899690,1760967043347,-6000.0,0.00032,5]
[391899691,1760967043362,-7844.08763176,0.00032,30]
[391899692,1760967043377,-442.5,0.00032065,2]
[391899693,1760967043392,-1015.02448864,0.00032065,5]
[391899694,1760967043409,-1500.0,0.00032065,5]
[391899695,1760967043425,-156.588327,0.00032089,15]
[391899696,1760967043440,-242.22859,0.00032089,15]
[391899697,1760967043456,-212.10558,0.00032089,15]
[391899698,1760967043475,-153.0,0.000324,2]
[391899699,1760967043489,-153.0,0.000324,2]
[391899700,1760967043511,-153.0,0.000324,2]
[391899701,1760967043529,-153.0,0.000324,2]
[391899702,1760967043544,-153.0,0.00032402,2]
[391899703,1760967043558,-153.0,0.00032402,2]
[391899704,1760967043574,-2000.0,0.00032444,5]
[391899705,1760967043589,-2000.0,0.00032444,5]
[391899706,1760967043605,-6500.0,0.00032548,5]
[391899707,1760967043620,-1414.82192606,0.00032561,2]
[391899708,1760967043635,-946.45912168,0.00032613,5]
[391899709,1760967043645,-459.49266346,0.00032665,2]
[391899710,1760967043811,-215.0,0.00032715,2]
[391899711,1760967043830,-1414.82192606,0.00032716,2]
[391899712,1760967043839,-1622.94,0.00032876,30]
[391899713,1760967043848,-2999.0,0.00032876,120]
[391899714,1760967043857,-1414.82192606,0.00032881,2]
[391899715,1760967043868,-475.69693235,0.000329,120]
[391899716,1760967043879,-796.76826484,0.000329,120]
[391899717,1760967043889,-531.92057593,0.000329,120]
[391899718,1760967043898,-289.15024196,0.000329,120]
[391899719,1760967043908,-1000.0,0.00032976,2]
[391899720,1760967043917,-1000.0,0.00032976,2]
[391899721,1760967043926,-1000.0,0.00032976,2]
[391899722,1760967043935,-1000.0,0.00032976,2]
[391899723,1760967043944,-1000.0,0.00032976,2]
[391899724,1760967043954,-1000.0,0.00032976,2]
[391899725,1760967043964,-1039.57200299,0.00032976,2]
[391899726,1760967043972,-168.0,0.00032984,7]
[391899727,1760967043982,-2015.50384054,0.00032992,5]
[391899728,1760967043991,-511.56144253,0.00032992,5]
[391899729,1760967044000,-500.0,0.00033,120]
[391899730,1760967044010,-402.9601108,0.00033,120]
[391899731,1760967044020,-11593.71964216,0.00033,5]
[391899732,1760967044030,-155.0,0.00033,14]
[391899733,1760967044040,-641.482941,0.00033021,2]
[391899734,1760967044052,-634.79067487,0.00033096,5]
[391899735,1760967044067,-800.0,0.00033097,2]
[391899736,1760967044077,-1622.94,0.0003315,30]
[391899737,1760967044087,-2647.65,0.000332,14]
[391899738,1760967044096,-1414.82192606,0.00033223,2]
[391899739,1760967044107,-168.0,0.00033267,2]
[391899740,1760967044118,-168.0,0.00033275,2]
[391899741,1760967044127,-1622.94,0.00033424,30]
[391899742,1760967044136,-1414.82192606,0.00033429,2]
[391899743,1760967044145,-1152.0,0.00033438,2]
[391899744,1760967044154,-19926.0,0.000335,7]
[391899745,1760967044164,-2999.0,0.00033561,120]
[391899746,1760967044173,-456.0,0.00033628,7]
[391899747,1760967044182,-456.0,0.00033639,2]
[391899748,1760967044192,-1622.94,0.00033698,30]
[391899749,1760967044201,-17530.02,0.000337,14]
[391899750,1760967044212,-13277.19444917,0.00033721,10]
[391899751,1760967044221,-1414.82192606,0.00033807,2]
[391899752,1760967044231,-2100.0,0.00033808,7]
[391899753,1760967044241,-7746.9100923,0.00033821,14]
[391899754,1760967044250,-242.22859,0.00033853,20]
[391899755,1760967044259,-212.10558,0.00033853,20]
[391899756,1760967044269,-457.0,0.00033864,2]
[391899757,1760967044279,-475.69693235,0.000339,120]
[391899758,1760967044288,-796.76826484,0.000339,120]
[391899759,1760967044299,-531.92057593,0.000339,120]
[391899760,1760967044309,-289.15024196,0.000339,120]
[391899761,1760967044318,-7291.5005824,0.00033902,2]
[391899762,1760967044327,-8307.970109,0.00033902,2]
[391899763,1760967044337,-1622.94,0.00033972,30]
[391899764,1760967044346,-150.0,0.00033973,5]
[391899765,1760967044356,-10000.0,0.00033991,60]
[391899766,1760967044365,-10000.0,0.00033996,60]
[391899767,1760967044374,-10000.0,0.00033996,60]
[391899768,1760967044383,-10000.0,0.00033996,60]
[391899769,1760967044392,-242.22859,0.00034,30]
[391899770,1760967044401,-212.10558,0.00034,30]
[391899771,1760967044412,-402.78104431,0.00034,10]
[391899772,1760967044421,-160.0,0.00034,120]
[391899773,1760967044430,-160.0,0.00034,120]
[391899774,1760967044440,-242.22859,0.00034001,30]
[391899775,1760967044450,-212.10558,0.00034001,30]
[391899776,1760967044459,-156.588327,0.00034002,30]
[391899777,1760967044468,-242.22859,0.00034002,30]
[391899778,1760967044478,-212.10558,0.00034002,30]
[391899779,1760967044489,-242.22859,0.00034003,30]
[391899780,1760967044506,-212.10558,0.00034003,30]
[391899781,1760967044515,-242.22859,0.00034004,30]
[391899782,1760967044524,-212.10558,0.00034004,30]
[391899783,1760967044534,-150.0,0.00034021,30]
[391899784,1760967044543,-1707621.6961,0.00034021,30]
[391899785,1760967044552,-1009.16138772,0.00034021,5]
[391899786,1760967044562,-252.277079,0.00034021,10]
[391899787,1760967044571,-233366.55285609,0.00034021,20]
[391899788,1760967044581,-7653.69686101,0.00034021,2]
[391899789,1760967044590,-1942.33815725,0.00034021,14]
[391899790,1760967044599,-7003.83360426,0.00034021,2]
[391899791,1760967044609,-221.92678176,0.00034021,2]
[391899792,1760967044618,-6395.875444,0.00034021,30]
[391899793,1760967044627,-941.25892401,0.00034021,5]
[391899794,1760967044637,-151.0,0.00034021,30]
[391899795,1760967044647,-151.0,0.00034021,2]
[391899796,1760967044656,-156.002361,0.00034021,30]
[391899797,1760967044668,-151.0,0.00034021,30]
[391899798,1760967044677,-151.0,0.00034021,30]
[391899799,1760967044687,-151.0,0.00034021,30]
[391899800,1760967044696,-151.0,0.00034021,30]
[391899801,1760967044706,-151.0,0.00034021,30]
[391899802,1760967044715,-151.0,0.00034021,30]
[391899803,1760967044725,-151.0,0.00034021,30]
[391899804,1760967044735,-151.0,0.00034021,30]
[391899805,1760967044744,-151.0,0.00034021,30]
[391899806,1760967044754,-10000.0,0.00034021,30]
[391899807,1760967044765,-10000.0,0.00034021,30]
[391899808,1760967044775,-10000.0,0.00034021,30]
[391899809,1760967044785,-10000.0,0.00034021,30]
[391899810,1760967044794,-10000.0,0.00034021,30]
[391899811,1760967044804,-10000.0,0.00034021,30]
[391899812,1760967044813,-250.06454488,0.00034021,30]
[391899813,1760967044822,-435.042453,0.00034021,30]
[391899814,1760967044831,-10000.0,0.00034021,30]
[391899815,1760967044841,-435.042453,0.00034021,30]
[391899816,1760967044850,-10000.0,0.00034021,30]
[391899817,1760967044860,-151.0,0.00034021,30]
[391899818,1760967044870,-10000.0,0.00034021,30]
[391899819,1760967044879,-435.042453,0.00034021,30]
[391899820,1760967044889,-435.042453,0.00034021,30]
[391899821,1760967044899,-151.0,0.00034021,30]
[391899822,1760967044910,-10000.0,0.00034021,30]
[391899823,1760967044919,-10000.0,0.00034021,30]
[391899824,1760967044929,-151.0,0.00034021,30]
[391899825,1760967044938,-10000.0,0.00034021,30]
[391899826,1760967044947,-151.0,0.00034021,30]
[391899827,1760967044957,-10000.0,0.00034021,30]
[391899828,1760967044966,-151.0,0.00034021,30]
[391899829,1760967044976,-151.0,0.00034021,30]
[391899830,1760967044985,-151.0,0.00034021,30]
[391899831,1760967044995,-151.0,0.00034021,30]
[391899832,1760967045005,-151.0,0.00034021,30]
[391899833,1760967045015,-151.0,0.00034021,30]
[391899834,1760967045024,-151.0,0.00034021,30]
[391899835,1760967045034,-151.0,0.00034021,30]
[391899836,1760967045044,-230.201136,0.00034021,30]
[391899837,1760967045055,-1414.82192606,0.00034122,2]
[391899838,1760967045068,-456.0,0.00034177,2]
[391899839,1760967045078,-242.22859,0.00034178,15]
[391899840,1760967045087,-212.10558,0.00034178,15]
[391899841,1760967045097,-456.0,0.00034183,2]
[391899842,1760967045107,-168.0,0.00034243,2]
[391899843,1760967045117,-1622.94,0.00034246,30]
[391899844,1760967045126,-2999.0,0.00034246,120]
[391899845,1760967045136,-1414.82192606,0.00034252,2]
[391899846,1760967045146,-245.89384134,0.0003438,2]
[391899847,1760967045155,-170.13676215,0.0003444,10]
[391899848,1760967045166,-500.0,0.0003444,10]
[391899849,1760967045176,-1622.94,0.0003452,30]
[391899850,1760967045186,-250.0,0.00034521,5]
[391899851,1760967045195,-155.0,0.00034521,30]
[391899852,1760967045206,-800.0,0.00034535,2]
[391899853,1760967045216,-392.7178133,0.00034575,30]
[391899854,1760967045226,-2647.65,0.000346,14]
[391899855,1760967045236,-2100.0,0.0003463,7]
[391899856,1760967045245,-456.0,0.0003465,2]
[391899857,1760967045256,-1414.82192606,0.00034675,2]
[391899858,1760967045265,-26554.26,0.000347,12]
[391899859,1760967045275,-1622.94,0.00034794,30]
[391899860,1760967045284,-800.0,0.00034797,2]
[391899861,1760967045294,-168.0,0.00034847,2]
[391899862,1760967045303,-456.0,0.00034847,2]
[391899863,1760967045313,-475.69693235,0.000349,120]
[391899864,1760967045323,-796.76826484,0.000349,120]
[391899865,1760967045333,-531.92057593,0.000349,120]
[391899866,1760967045343,-289.15024196,0.000349,120]
[391899868,1760967045353,-201.204158,0.00034921,2]
[391899869,1760967045362,-500.0,0.00034931,120]
[391899870,1760967045372,-331.43500633,0.00034931,120]
[391899871,1760967045382,-2999.0,0.00034931,120]
[391899872,1760967045391,-7291.50058233,0.00034957,2]
[391899873,1760967045401,-456.0,0.00034962,7]
[391899874,1760967045411,-1414.82192606,0.0003497,2]
[391899875,1760967045420,-304.8997414,0.00034986,30]
[391899876,1760967045429,-158.41,0.00035,2]
[391899877,1760967045438,-1169.01441972,0.00035,2]
[391899878,1760967045447,-168.0,0.00035017,2]
[391899879,1760967045457,-242.22859,0.00035029,20]
[391899880,1760967045467,-212.10558,0.00035029,20]
[391899881,1760967045476,-800.0,0.00035049,2]
[391899882,1760967045485,-1622.94,0.00035068,30]
[391899883,1760967045495,-350.0,0.00035068,5]
[391899884,1760967045504,-894.967355,0.0003516,120]
[391899885,1760967045513,-500.0,0.00035173,5]
[391899886,1760967045522,-55222.0,0.000352,60]
[391899887,1760967045531,-1414.82192614,0.0003521,2]
[391899888,1760967045541,-12801.2381932,0.00035249,2]
[391899889,1760967045551,-3873.81201685,0.00035263,2]
[391899890,1760967045560,-379.56129199,0.00035263,2]
[391899891,1760967045570,-683.21032558,0.00035263,2]
[391899892,1760967045581,-1214.59613436,0.00035263,2]
[391899893,1760967045591,-1895.90865348,0.00035263,2]
[391899894,1760967045602,-458.04854459,0.00035263,2]
[391899895,1760967045614,-824.48738026,0.00035263,2]
[391899896,1760967045624,-1465.75534268,0.00035263,2]
[391899897,1760967045634,-2290.24272293,0.00035263,2]
[391899898,1760967045643,-3681.25526014,0.00035267,2]
[391899899,1760967045653,-1000.0,0.00035267,2]
[391899900,1760967045666,-1000.0,0.00035267,2]
[391899901,1760967045676,-1000.0,0.00035267,2]
[391899902,1760967045685,-1000.0,0.00035267,2]
[391899903,1760967045694,-1000.0,0.00035267,2]
[391899904,1760967045705,-1000.0,0.00035267,2]
[391899905,1760967045714,-1000.0,0.00035267,2]
[391899906,1760967045727,-1000.0,0.00035267,2]
[391899907,1760967045737,-1000.0,0.00035267,2]
[391899908,1760967045747,-359.899,0.00035267,2]
[391899909,1760967045756,-504.26161382,0.00035267,2]
[391899910,1760967045765,-907.67090488,0.00035267,2]
[391899911,1760967045775,-1613.63716423,0.00035267,2]
[391899912,1760967045784,-2521.30806911,0.00035267,2]
[391899913,1760967045794,-1622.94,0.00035342,30]
[391899914,1760967045803,-2543.06798703,0.00035402,5]
[391899915,1760967045812,-2676.08916841,0.00035402,5]
[391899916,1760967045822,-1124.47274867,0.00035402,5]
[391899917,1760967045831,-1355.71129177,0.00035402,5]
[391899921,1760967045951,-1493.5778133,0.00035402,5]
[391899922,1760967045963,-982.0,0.00035424,2]
[391899923,1760967045974,-2163.0,0.00035424,2]
[391899924,1760967045984,-632.0,0.00035424,2]
[391899925,1760967045994,-411.0,0.00035424,2]
[391899926,1760967046003,-353.7462418,0.00035439,2]
[391899927,1760967046013,-2286.3829748,0.00035439,2]
[391899928,1760967046025,-11190.75002488,0.00035443,7]
[391899929,1760967046035,-250.0,0.00035443,7]
[391899930,1760967046044,-250.0,0.00035443,7]
[391899931,1760967046053,-250.0,0.00035443,7]
[391899932,1760967046065,-250.0,0.00035443,7]
[391899933,1760967046075,-250.0,0.00035443,7]
[391899934,1760967046085,-514.84070869,0.00035443,7]
[391899935,1760967046094,-250.0,0.00035443,7]
[391899936,1760967046104,-533.88981491,0.00035443,7]
[391899937,1760967046113,-250.0,0.00035443,7]
[391899938,1760967046123,-553.64373807,0.00035443,7]
[391899939,1760967046134,-250.0,0.00035443,7]
[391899940,1760967046143,-574.12855637,0.00035443,7]
[391899941,1760967046153,-250.0,0.00035443,7]
[391899942,1760967046165,-595.37131296,0.00035443,7]
[391899943,1760967046174,-250.0,0.00035443,7]
[391899944,1760967046184,-151.0,0.00035443,7]
[391899945,1760967046193,-617.40005154,0.00035443,7]
[391899946,1760967046203,-250.0,0.00035443,7]
[391899947,1760967046212,-151.0,0.00035443,7]
[391899948,1760967046222,-640.24385345,0.00035443,7]
[391899949,1760967046232,-500.0,0.00035443,7]
[391899950,1760967046242,-250.0,0.00035443,7]
[391899951,1760967046252,-151.0,0.00035443,7]
[391899952,1760967046261,-663.93287602,0.00035443,7]
[391899953,1760967046270,-500.0,0.00035443,7]
[391899954,1760967046280,-250.0,0.00035443,7]
[391899955,1760967046289,-688.49839244,0.00035443,7]
[391899956,1760967046298,-151.0,0.00035443,7]
[391899957,1760967046307,-187.78006525,0.00035443,7]
[391899958,1760967046317,-500.0,0.00035443,7]
[391899959,1760967046327,-250.0,0.00035443,7]
[391899960,1760967046337,-151.0,0.00035443,7]
[391899961,1760967046346,-713.97283296,0.00035443,7]
[391899962,1760967046356,-194.72792766,0.00035443,7]
[391899963,1760967046366,-500.0,0.00035443,7]
[391899964,1760967046376,-290.08453086,0.00035443,7]
[391899965,1760967046385,-201.93286099,0.00035443,7]
[391899966,1760967046395,-500.0,0.00035443,7]
[391899967,1760967046404,-740.38982778,0.00035443,7]
[391899968,1760967046416,-209.40437684,0.00035443,7]
[391899969,1760967046425,-500.0,0.00035443,7]
[391899970,1760967046435,-217.15233878,0.00035443,7]
[391899971,1760967046444,-767.7842514,0.00035443,7]
[391899972,1760967046453,-500.0,0.00035443,7]
[391899973,1760967046462,-796.19226871,0.00035443,7]
[391899974,1760967046471,-225.18697532,0.00035443,7]
[391899975,1760967046480,-500.0,0.00035443,7]
[391899976,1760967046490,-825.65138265,0.00035443,7]
[391899977,1760967046500,-233.51889341,0.00035443,7]
[391899978,1760967046509,-500.0,0.00035443,7]
[391899979,1760967046518,-242.15909246,0.00035443,7]
[391899980,1760967046528,-500.0,0.00035443,7]
[391899981,1760967046538,-500.0,0.00035443,7]
[391899982,1760967046547,-251.11897888,0.00035443,7]
[391899983,1760967046557,-500.0,0.00035443,7]
[391899984,1760967046568,-260.4103811,0.00035443,7]
[391899985,1760967046578,-500.0,0.00035443,7]
[391899986,1760967046587,-270.0455652,0.00035443,7]
[391899987,1760967046597,-157.75103136,0.00035443,7]
[391899988,1760967046607,-280.03725112,0.00035443,7]
[391899989,1760967046618,-290.39862941,0.00035443,7]
[391899990,1760967046627,-301.1433787,0.00035443,7]
[391899991,1760967046636,-1323302.9531689,0.00035444,7]
[391899992,1760967047690,-300.70905121,0.00024175,2]
[391899993,1760967047700,-151.0,0.00034021,30]
[391899994,1760967047709,-230.201136,0.00034021,30]
[391899995,1760967047718,-90911.64552094,0.00035444,7]
[391899996,1760967047729,-1206.23160862,0.00035444,7]
[391899997,1760967048245,-846.67,0.00024265,10]
[391899998,1760967048255,-230.201136,0.00034021,30]
[391899999,1760967048264,-230.201136,0.00034021,30]
[391900000,1760967048273,-3079.24118153,0.00035444,7]
[391900001,1760967048288,-179272.88727295,0.00035444,7]
[391900002,1760967108651,160.0,0.000301,120]
[391900003,1760967115955,160.0,0.000301,120]
[391900053,1760967203322,-705.56,0.00024165,10]
[391900054,1760967203352,-300.0,0.00024174,2]
[391900055,1760967203380,-253.65295231,0.00024174,2]
[391900056,1760967203409,-186.27808695,0.00024174,2]
[391900057,1760967284877,263.1204198,0.000241,2]
[391900058,1760967342214,-437.26,0.00024165,3]
[391900059,1760967342246,-218.63,0.00024165,3]
[391900060,1760967342278,-655.89,0.00024165,3]
[391900061,1760967342307,-300.0,0.00024174,2]
[391900062,1760967342335,-1200.0,0.00024174,2]
[391900063,1760967342364,-177.55706662,0.00024174,2]
[391900064,1760967342397,-152.84093238,0.00024174,2]
[391900065,1760967342427,-266.78877926,0.00024174,2]
[391900066,1760967342460,-500.0,0.00024174,2]
[391900067,1760967342490,-517.17272491,0.00024174,2]
[391900068,1760967348790,-587.97,0.00024165,10]
[391900069,1760967354835,-500.0,0.00024174,2]
[391900070,1760967354866,-500.0,0.00024174,2]
[391900078,1760967448821,7238.25286888,0.000241,2]
[391900079,1760967453171,174.986,0.00022835,2]
[391900080,1760967530264,300.0,0.00030136,120]
[391900081,1760967540111,249.80482115,0.000241,2]
[391900082,1760967573586,-720.61,0.00024165,3]
[391900083,1760967573615,-360.31,0.00024165,3]
[391900084,1760967573642,-180.15,0.00024165,3]
[391900085,1760967573671,-540.49,0.00024165,3]
[391900086,1760967573699,-1200.0,0.00024173,2]
[391900087,1760967573727,-300.0,0.00024173,2]
[391900088,1760967573754,-153.72890946,0.00024174,2]
[391900089,1760967573785,-500.0,0.00024174,2]
[391900090,1760967573815,-468.47409682,0.00024174,2]
[391900091,1760967573843,-355.78362851,0.00024174,2]
[391900092,1760967580441,-500.0,0.00024174,2]
[391900093,1760967580472,-500.0,0.00024174,2]
[391900094,1760967580502,-500.0,0.00024174,2]
[391900095,1760967580531,-500.0,0.00024174,2]
[391900096,1760967580559,-500.0,0.00024174,2]
[391900097,1760967580589,-500.0,0.00024174,2]
[391900098,1760967580619,-212.48463544,0.00024174,2]
[391900099,1760967580650,-211.94872092,0.00024174,2]
[391900100,1760967580680,-382.43145841,0.00024174,2]
[391900101,1760967763423,-150.0,0.00024165,2]
[391900102,1760967763446,-512.7,0.00024165,3]
[391900103,1760967763468,-256.35,0.00024165,3]
[391900104,1760967763492,-785.94,0.00024165,10]
[391900105,1760967763514,-769.09,0.00024165,3]
[391900106,1760967763537,-654.95,0.00024165,10]
[391900107,1760967763560,-1200.0,0.00024173,2]
[391900108,1760967763582,-300.0,0.00024173,2]
[391900109,1760967763603,-1200.0,0.00024173,2]
[391900110,1760967763624,-300.0,0.00024174,2]
[391900111,1760967763645,-300.0,0.00024174,2]
[391900112,1760967763784,-300.0,0.00024174,2]
[391900113,1760967763809,-300.0,0.00024174,2]
[391900114,1760967763832,-32970.97,0.00024175,2]
[391900115,1760967765159,417.15472785,0.00024141,2]
[391900116,1760967792817,6499.75364038,0.000241,2]
[391900117,1760967810496,218.57921848,0.000241,2]
[391900118,1760967904596,150.0,0.00020083,2]
[391900119,1760967905088,150.0,0.0002104,2]
[391900120,1760967956097,727.56,0.00030137,120]
[391900122,1760967979246,276.99740991,0.000241,2]
[391900124,1760968090768,229.14133976,0.00024074,2]
[391900128,1760968133123,6151.93478319,0.000241,2]
[391900347,1760968237993,-1200.0,0.00024164,2]
[391900348,1760968238003,-300.0,0.00024164,2]
[391900349,1760968238013,-1200.0,0.00024164,2]
[391900350,1760968238023,-895.33,0.00024165,3]
[391900351,1760968238033,-447.67,0.00024165,3]
[391900352,1760968238043,-223.83,0.00024165,3]
[391900353,1760968238053,-671.53,0.00024165,3]
[391900354,1760968238062,-545.79,0.00024165,10]
[391900355,1760968238071,-191.37,0.00024165,3]
[391900356,1760968238081,-454.83,0.00024165,10]
[391900357,1760968238091,-574.14,0.00024165,3]
[391900358,1760968238100,-16371.33525887,0.00024173,2]
[391900359,1760968238121,-346.73154701,0.00024173,2]
[391900360,1760968238132,-408.6477207,0.00024173,2]
[391900361,1760968238142,-45529.4038647,0.00024173,2]
[391900362,1760968238151,-500.0,0.00024174,2]
[391900363,1760968238161,-502.30669043,0.00024174,2]
[391900364,1760968238170,-358.52559152,0.00024174,2]
[391900365,1760968238180,-337029.03,0.00024175,2]
[391900366,1760968238190,-151.0,0.000242,10]
[391900367,1760968238200,-22486.03,0.000242,7]
[391900368,1760968238211,-1000.0,0.00024274,2]
[391900369,1760968238220,-1000.0,0.00024274,2]
[391900370,1760968238230,-1000.0,0.00024274,2]
[391900371,1760968238239,-1000.0,0.00024274,2]
[391900372,1760968238248,-1000.0,0.00024274,2]
[391900373,1760968238257,-1000.0,0.00024274,2]
[391900374,1760968238267,-1000.0,0.00024274,2]
[391900375,1760968238276,-1000.0,0.00024274,2]
[391900376,1760968238291,-1000.0,0.00024274,2]
[391900377,1760968238300,-1000.0,0.00024274,2]
[391900378,1760968238309,-1000.0,0.00024274,2]
[391900379,1760968238319,-1000.0,0.00024274,2]
[391900380,1760968238329,-1000.0,0.00024274,2]
[391900381,1760968238339,-1000.0,0.00024274,2]
[391900382,1760968238348,-1011.94443512,0.00024274,2]
[391900383,1760968238358,-500.0,0.00024448,2]
[391900384,1760968238367,-1219.40924825,0.00024582,2]
[391900385,1760968238377,-500.0,0.00024722,2]
[391900386,1760968238387,-172.5,0.00024765,2]
[391900387,1760968238396,-32602.3526146,0.000248,2]
[391900388,1760968238405,-500.0,0.00024873,2]
[391900389,1760968238415,-500.0,0.00024873,2]
[391900390,1760968238425,-502.14059009,0.00024873,2]
[391900391,1760968238434,-500.0,0.00024873,2]
[391900392,1760968238444,-236.45428499,0.00024873,2]
[391900393,1760968238453,-1897.0,0.00024873,2]
[391900394,1760968238465,-500.0,0.00024873,2]
[391900395,1760968238474,-151.0,0.00024873,2]
[391900396,1760968238484,-151.0,0.00024873,2]
[391900397,1760968238497,-500.0,0.00024873,2]